Cogmind - Beta 14 @@@ ROGUE MODE // 2024.10.25 @ 17:44:32 Player: Pitt Result: Destroyed by 1C-UTU with 1C-UTU's Sword "Choppy" Performance ------------- Evolutions (1) 500 Regions Visited (5) 1000 Robots Destroyed (42) 210 Value Destroyed (1036) 1036 Prototype IDs (2) 40 Alien Tech Used (0) 0 Bonus (234) 234 TOTAL SCORE: 3020 Bonus ------- Follower Combat Kills 21 Aligned with FarCom 300 Friendly Fire -87 Cogmind --------- Core Integrity 0/400 Matter 146/300 Energy 125/125 System Corruption 0% Temperature Cool (0) Movement Core (450) Ox8 Location -8/Mines Parts ------- > --- POWER (1) -------- Light Ion Engine > --- PROPULSION (4) --- (None) > --- UTILITY (2) ------ Large Storage Unit > --- WEAPON (2) ------- Heavy Assault Rifle > --- INVENTORY (15) --- Light Ion Engine Improved Ion Engine Large Storage Unit Structural Scanner Machine Analyzer Seismic Detector Light Armor Plating Army-in-a-Box EM Pulse Gun Rocket Launcher Peak State ------------ > --- POWER ------------ Improved Ion Engine > --- PROPULSION ------- Aluminum Leg Aluminum Leg Aluminum Leg Aluminum Leg > --- UTILITY ---------- Large Storage Unit Structural Scanner > --- WEAPON ----------- Improved EM Shotgun Rocket Launcher > --- INVENTORY -------- Light Ion Engine Light Ion Engine Machine Analyzer Seismic Detector Light Armor Plating Army-in-a-Box EM Pulse Gun Beam Cannon Heavy Assault Rifle Heavy Assault Rifle [Rating: 19] Favorites ----------- Power Improved Ion Engine Engine Improved Ion Engine Propulsion Aluminum Leg Leg Aluminum Leg Wheel Wheel Utility Large Storage Unit Device Structural Scanner Storage Large Storage Unit Weapon Beam Cannon Energy Gun Improved EM Shotgun Energy Cannon Beam Cannon Ballistic Gun Heavy Assault Rifle Launcher Rocket Launcher Special Weapon Mining Laser Build | -11 -10 -9 -9 -9 -8 ------- Run | Yrd Mat Mat Min Exi Min Slots Evolved 2 | . . 2 . . . Power . | . . . . . . Propulsion 2 | . . 2 . . . Utility . | . . . . . . Weapon . | . . . . . . Parts Attached 38 | 7 5 18 2 2 4 Power 5 | 1 . 1 2 . 1 Engine 5 | 1 . 1 2 . 1 Core . | . . . . . . Reactor . | . . . . . . Propulsion 9 | 2 . 7 . . . Treads . | . . . . . . Leg 4 | . . 4 . . . Wheel 5 | 2 . 3 . . . Hover . | . . . . . . Flight . | . . . . . . Utility 6 | 2 1 2 . . 1 Device 4 | 1 . 2 . . 1 Storage 2 | 1 1 . . . . Processor . | . . . . . . Hackware . | . . . . . . Protection . | . . . . . . Artifact . | . . . . . . Weapon 18 | 2 4 8 . 2 2 Energy Gun 9 | 2 1 5 . 1 . Energy Cannon 3 | . 1 2 . . . Ballistic Gun 3 | . 1 . . . 2 Ballistic Cannon . | . . . . . . Launcher 2 | . . 1 . 1 . Special Weapon 1 | . 1 . . . . Impact Weapon . | . . . . . . Slashing Weapon . | . . . . . . Piercing Weapon . | . . . . . . Special Melee Weapon . | . . . . . . Unidentified Prototypes 2 | . . 2 . . . Parts Lost 12 | . . 5 . 1 6 Power . | . . . . . . Propulsion 7 | . . 3 . . 4 Utility 2 | . . 1 . . 1 Weapon 3 | . . 1 . 1 1 Highest Loss Streak 5 | . . 4 . 1 5 To Critical Strikes . | . . . . . . Average Slot Usage (%) 97 | . 100 96 100 96 81 Engine 11 | . 14 11 11 11 11 Leg 25 | . . 5 44 44 29 Wheel 15 | . 28 36 . . . Device 11 | . 14 10 11 11 9 Storage 11 | . 14 11 11 11 11 Energy Gun 10 | . 16 11 11 7 1 Energy Cannon 8 | . 8 9 11 7 . Launcher 1 | . . . . 3 1 Peak Build Rating 19 | 9 10 15 14 19 19 Average Rating 13 | 6 9 14 13 15 17 On Entrance 10 | . 9 10 14 14 17 Naked Turns . | . . . . . . Heaviest Build 35 | 12 29 35 35 34 34 Greatest Support 40 | 20 20 40 40 40 40 Greatest Overweight (x) 2 | . 1 2 . . 1 Average Overweight (x) . | . . . . . . Largest Inventory Capacity 15 | 8 15 15 15 15 15 Average Capacity 14 | 7 10 15 15 15 15 Most Carried 15 | 7 8 10 15 15 15 Average Carried 10 | 4 7 8 12 14 14 Final Capacity 15 | 8 15 15 15 15 15 Final Carried 15 | 6 8 9 15 14 15 Class Distribution -------------------- 60% | Scavenger-Mutant 39% | Mutant Dominant Class ---------------- Mutant | -10/Materials Mutant | -9/Materials Scavenger-Mutant | -9/Mines Scavenger-Mutant | -9/Exiles Scavenger-Mutant | -8/Mines Resources | -11 -10 -9 -9 -9 -8 ----------- Run | Yrd Mat Mat Min Exi Min Matter Collected 534 | 270 47 187 20 . 10 Remotely . | . . . . . . Salvage Created 1454 | 123 242 419 326 217 127 Parts 84 | 15 14 20 13 16 6 Haulers Intercepted . | . . . . . . Recyclers Shooed 3 | 1 . 1 1 . . Parts Field Recycled . | . . . . . . Retrieved Matter . | . . . . . . Parts Self-Destructed . | . . . . . . Prevented . | . . . . . . Kills | -11 -10 -9 -9 -9 -8 ------- Run | Yrd Mat Mat Min Exi Min Combat Hostiles Destroyed 23 | . 4 7 2 8 2 Guns 9 | . 2 5 . . 2 Cannons 6 | . 2 2 2 . . AOE 8 | . . . . 8 . Classes Destroyed 12 | 2 4 4 1 1 . Worker 2 | . . 1 1 . . Builder 3 | . 1 . 2 . . Tunneler 8 | 4 . . 3 . 1 Recycler 3 | 1 . 1 1 . . Mechanic 1 | . . 1 . . . Operator 1 | . 1 . . . . Watcher 1 | . 1 . . . . Grunt 17 | . 4 3 1 7 2 Brawler 1 | . . . 1 . . Duelist 1 | . . 1 . . . Sentry 3 | . . 3 . . . Hunter 1 | . . . . 1 . Best Kill Streak 5 | 3 3 5 2 4 2 Combat Bots Only 4 | . 2 4 2 4 2 Max Kills in Single Turn 2 | 1 1 1 1 2 1 Gunslinging . | . . . . . . Exploded 2 | . . . . 2 . Melee . | . . . . . . Uniques/NPCs Destroyed . | . . . . . . Combat | -11 -10 -9 -9 -9 -8 -------- Run | Yrd Mat Mat Min Exi Min Hostile Shots Fired 128 | . 15 54 3 40 16 Missed 35 | . 7 17 . 10 1 Damage Taken 1666 | . 100 510 34 461 561 Core 428 | . 15 61 12 33 307 Absorbed by Shields . | . . . . . . Core Remaining (%) 97 | 100 94 . . . . Volleys Fired 142 | 12 21 35 53 11 10 Largest 2 | 2 2 2 1 1 2 Hottest 125 | 90 100 125 60 60 46 Shots Fired 191 | 24 37 49 53 11 17 Gun 90 | 24 29 19 . 1 17 Cannon 90 | . 7 28 53 2 . Launcher 10 | . . 2 . 8 . Special 1 | . 1 . . . . Kinetic 24 | . 7 . . . 17 Thermal 140 | 24 26 35 53 2 . Explosive 10 | . . 2 . 8 . Electromagnetic 17 | . 4 12 . 1 . Robot Hit Streak 8 | 6 6 8 8 3 5 Robot Miss Streak 4 | 3 2 3 4 3 3 Penetration Max . | . . . . . . Secondary Targets 1 | . . . . . 1 Max Gunslinging Chain 1 | . . . . . 1 Shots Hit Robots 120 | 13 26 35 33 4 9 Core Hits 74 | 6 12 22 9 20 5 Critical Kills 1 | . . . 1 . . Critical Parts Destroyed . | . . . . . . Critical Strikes 1 | . . . 1 . . Meltdown 1 | . . . 1 . . Melee Attacks . | . . . . . . Impact . | . . . . . . Slashing . | . . . . . . Piercing . | . . . . . . Sneak Attacks . | . . . . . . Combat Hostiles . | . . . . . . Follow-up Attacks . | . . . . . . Damage Inflicted 3019 | 173 332 680 597 1090 147 Guns 787 | 173 246 221 . . 147 Cannons 1034 | . 86 334 597 17 . Explosions 1198 | . . 125 . 1073 . Melee . | . . . . . . Ramming . | . . . . . . Kinetic 188 | . 41 . . . 147 Thermal 1462 | 173 241 434 597 17 . Explosive 1198 | . . 125 . 1073 . Electromagnetic 171 | . 50 121 . . . Impact . | . . . . . . Slashing . | . . . . . . Piercing . | . . . . . . Highest Corruption 2 | . 2 . . . . Average Corruption 2 | . 2 . . . . Corruption Purged . | . . . . . . Corruption Blocked . | . . . . . . Overload Shots . | . . . . . . Overflow Damage 18 | . 4 . 5 9 . Projectiles 9 | . 4 . 5 . . Explosions 9 | . . . . 9 . Melee . | . . . . . . Knockbacks . | . . . . . . Impact . | . . . . . . Kinetic . | . . . . . . Secondary . | . . . . . . Self-Inflicted Damage . | . . . . . . Shots . | . . . . . . Rammed . | . . . . . . Targets Rammed . | . . . . . . Kicked . | . . . . . . Crushed . | . . . . . . Highest Temperature 417 | 180 216 417 210 32 20 Average Temperature 86 | 63 92 137 48 18 7 Received Heat Transfer 363 | . 54 183 18 18 90 Effects 3 | . . 2 1 . . Energy Bleed 1 | . . . 1 . . Interference 2 | . . 2 . . . Siege Activations . | . . . . . . Robots Corrupted . | . . . . . . Combat Hostiles . | . . . . . . Parts Fried 1 | . 1 . . . . Impact Corruptions . | . . . . . . Robots Melted 1 | . . . 1 . . Combat Hostiles . | . . . . . . Parts Melted 5 | . 1 1 3 . . Heat Transferred 3181 | 459 594 833 1258 37 . Parts Sabotaged . | . . . . . . Parts Stolen . | . . . . . . Parts Stripped . | . . . . . . Power Chain Reactions . | . . . . . . Alert | -11 -10 -9 -9 -9 -8 ------- Run | Yrd Mat Mat Min Exi Min Peak Influence 199 | 25 189 124 199 . 55 Initial 79 | . 16 79 25 . . Average 78 | 12 135 67 79 . 20 Maximum Alert Level . | . . . . . . Low Security (%) 100 | 100 100 100 100 . 100 Level 1 . | . . . . . . Level 2 . | . . . . . . Level 3 . | . . . . . . Level 4 . | . . . . . . Level 5 . | . . . . . . High Security . | . . . . . . Max Security . | . . . . . . Squads Dispatched 1 | . 1 . . . . Investigation . | . . . . . . Extermination . | . . . . . . Reinforcement 1 | . 1 . . . . Assault . | . . . . . . Garrison . | . . . . . . Intercept . | . . . . . . Searches Triggered . | . . . . . . Construction Impeded . | . . . . . . Haulers Reinforced . | . . . . . . Active Scanning Responses . | . . . . . . Cargo Convoy Interrupts . | . . . . . . Stealth | -11 -10 -9 -9 -9 -8 --------- Run | Yrd Mat Mat Min Exi Min Distress Signals . | . . . . . . Communications Jammed . | . . . . . . Distress Signals . | . . . . . . Times Spotted 42 | . 7 8 8 13 6 Peak Tracking Total 7 | . 3 4 3 7 4 Tactical Retreats 3 | . . . . 2 1 Traps | -11 -10 -9 -9 -9 -8 ------- Run | Yrd Mat Mat Min Exi Min Traps Triggered 1 | . 1 . . . . Indirectly . | . . . . . . Trap Hack Attempts . | . . . . . . Triggered . | . . . . . . Disarmed . | . . . . . . Reprogrammed . | . . . . . . Reused . | . . . . . . Traps Extracted . | . . . . . . Installed . | . . . . . . Triggered . | . . . . . . Machines | -11 -10 -9 -9 -9 -8 ---------- Run | Yrd Mat Mat Min Exi Min Machines Disabled 4 | . . . 1 3 . Max in Single Turn 1 | . . . 1 1 . Machines Repaired . | . . . . . . Machines Dismantled . | . . . . . . Machines Sabotaged . | . . . . . . Overloaded Fab Kills . | . . . . . . Hacking | -11 -10 -9 -9 -9 -8 --------- Run | Yrd Mat Mat Min Exi Min Machines Accessed 7 | . 6 . . 1 . Terminals 6 | . 6 . . . . Fabricators . | . . . . . . Repair Stations . | . . . . . . Recycling Units . | . . . . . . Scanalyzers . | . . . . . . Garrison Access . | . . . . . . Total Hacks 22 | . 18 . . 4 . Successful 13 | . 9 . . 4 . Failed 9 | . 9 . . . . Catastrophic 1 | . 1 . . . . Database Lockouts . | . . . . . . Manual 10 | . 9 . . 1 . Terminals 18 | . 18 . . . . Fabricators . | . . . . . . Repair Stations . | . . . . . . Recycling Units . | . . . . . . Scanalyzers . | . . . . . . Garrison Access . | . . . . . . Terminal Hacks 9 | . 5 . . 4 . Record 4 | . . . . 4 . Terminal Index 1 | . 1 . . . . Locate Traps 2 | . 2 . . . . Zone Layout 2 | . 2 . . . . Fabricator Hacks . | . . . . . . Repair Station Hacks . | . . . . . . Recycling Unit Hacks . | . . . . . . Scanalyzer . | . . . . . . Garrison Access Hacks . | . . . . . . Unauthorized Hacks 4 | . 4 . . . . Terminals 4 | . 4 . . . . Assimilate 1 | . 1 . . . . Botnet 2 | . 2 . . . . Operators 1 | . 1 . . . . Fabricators . | . . . . . . Repair Stations . | . . . . . . Recycling Units . | . . . . . . Scanalyzers . | . . . . . . Garrison Access . | . . . . . . Data Cores Recovered . | . . . . . . Used . | . . . . . . Hacking Detections 6 | . 6 . . . . Full Trace Events . | . . . . . . Feedback Events . | . . . . . . Feedback Blocked . | . . . . . . Robot Schematics Acquired . | . . . . . . Robots Built . | . . . . . . Authchips . | . . . . . . Time . | . . . . . . Total Robot Build Rating . | . . . . . . Part Schematics Acquired . | . . . . . . Parts Built . | . . . . . . Authchips . | . . . . . . Time . | . . . . . . Total Part Build Rating . | . . . . . . Parts Repaired . | . . . . . . Time . | . . . . . . Parts Recycled . | . . . . . . Recycled Matter . | . . . . . . Retrieved Matter . | . . . . . . Retrieved Components . | . . . . . . Parts Scanalyzed . | . . . . . . Part Schematics Acquired . | . . . . . . Parts Damaged . | . . . . . . Bothacking | -11 -10 -9 -9 -9 -8 ------------ Run | Yrd Mat Mat Min Exi Min Used RIF Installer . | . . . . . . Robots Hacked . | . . . . . . Non-combat . | . . . . . . Combat . | . . . . . . Robot Hacks Applied . | . . . . . . Relay Couplers Released . | . . . . . . Fabnet Peak Effective % . | . . . . . . Robots Rewired . | . . . . . . Allies Hacked . | . . . . . . Hacks Repelled . | . . . . . . Allies | -11 -10 -9 -9 -9 -8 -------- Run | Yrd Mat Mat Min Exi Min Total Allies 2 | . . . 2 . . Largest Group 2 | . . . 2 2 . Highest-Rated Group 45 | . . . 45 45 . Highest-Rated Ally 31 | . . . 31 31 . Total Orders . | . . . . . . Ally Attacks 9 | . . . 9 . . Total Damage 105 | . . . 105 . . Kills 3 | . . . 3 . . Allies Corrupted . | . . . . . . Allies Melted . | . . . . . . Intel | -11 -10 -9 -9 -9 -8 ------- Run | Yrd Mat Mat Min Exi Min Robot Analysis Total . | . . . . . . Derelict Logs Recovered . | . . . . . . Drone Launches . | . . . . . . Drone Recoveries . | . . . . . . Exploration | -11 -10 -9 -9 -9 -8 ------------- Run | Yrd Mat Mat Min Exi Min Turns Passed 2859 | 116 349 917 775 634 68 Spaces Moved 1453 | 77 294 168 434 465 15 Core 1 | 1 . . . . . Treads . | . . . . . . Legs 1002 | . . 88 434 465 15 Wheels 450 | 76 294 80 . . . Hover . | . . . . . . Flight . | . . . . . . Fastest Speed 50 | 50 80 80 120 120 120 Average Speed 112 | 79 85 135 120 120 152 Slowest Speed 260 | 80 95 260 120 120 190 Overloaded Moves . | . . . . . . Propulsion Burnouts . | . . . . . . Robots Hopped . | . . . . . . Cave-ins Triggered . | . . . . . . Exploration Rate (%) 35 | 4 46 19 73 66 7 Regions Visited 5 Branch Regions 3 Pre-discovered Areas 1 | . . . . 1 . Known Exits Taken . | . . . . . . Unknown Exits Taken 5 | 1 1 1 1 1 . Scrap Searched 1 | . . . 1 . . Spaces Dug 1 | . 1 . . . . Terrain Destroyed 38 | . 1 18 . 19 . Melee . | . . . . . . Projectile 1 | . 1 . . . . AOE 37 | . . 18 . 19 . Terrain Rammed . | . . . . . . Walls Destroyed . | . . . . . . Machines Disabled . | . . . . . . Actions | -11 -10 -9 -9 -9 -8 --------- Run | Yrd Mat Mat Min Exi Min Total 2475 | 104 354 805 637 533 42 Wait 794 | . 25 575 137 47 10 Move 1448 | 76 293 167 433 464 15 Hop . | . . . . . . Pick Up 27 | 8 5 4 8 2 . Fast Attach 17 | 6 1 7 1 . 2 Attach 7 | 1 . 5 . 1 . Detach 7 | . . 4 1 . 2 Swap 14 | . 4 6 1 1 2 Drop 19 | 1 5 2 3 7 1 Fire 142 | 12 21 35 53 11 10 Melee . | . . . . . . Ram . | . . . . . . Kick . | . . . . . . Crush . | . . . . . . Escape Stasis . | . . . . . . Rewire . | . . . . . . Trap . | . . . . . . Miscellaneous . | . . . . . . Route ------- -11/Scrapyard -10/Materials (discovered 3 exits: [*Mat x2] / [*Min]) -9/Materials -9/Mines (discovered 3 exits: [*Mat x2] / *Exi) -9/Exiles -8/Mines History --------- Turn | Location | Event 15 | -11/Scrapyard | Discovered new exit (range 16) 117 | -11/Scrapyard | Entered Materials 194 | -10/Materials | Discovered new exit (range 12) 248 | -10/Materials | Discovered new exit (range 14) 304 | -10/Materials | Build established: Mutant 382 | -10/Materials | Discovered new exit (range 14) 466 | -10/Materials | Entered another Materials area 466 | -9/Materials | Evolved 2 slots: Propulsion x2 1183 | -9/Materials | Lost 4 parts (2n1u1w) 1302 | -9/Materials | Discovered new exit (range 15) 1383 | -9/Materials | Entered Mines 1390 | -9/Mines | Discovered new exit (range 10) 1431 | -9/Mines | Build established: Scavenger-Mutant 1529 | -9/Mines | Discovered new exit (range 15) 1662 | -9/Mines | Joined a pair of Derelicts in attacking an 0b10 outpost 2122 | -9/Mines | Deemed a non-threat by the Exiles lab entrance 2122 | -9/Mines | Discovered new exit (range 5) 2158 | -9/Mines | Entered Exiles 2158 | -9/Exiles | Accompanied by 2 allies 2188 | -9/Exiles | Led the pair of lost Derelicts to a safe place 2218 | -9/Exiles | Met 8R-AWN 2237 | -9/Exiles | Met EX-HEX 2283 | -9/Exiles | Met EX-DEC 2309 | -9/Exiles | Learned location of Zion (-6) 2369 | -9/Exiles | Met EX-BIN 2387 | -9/Exiles | Aligned with FarCom system 2388 | -9/Exiles | Given EX-Vault access code 2433 | -9/Exiles | Opened EX-Vault 2467 | -9/Exiles | Found Prototype Device 2486 | -9/Exiles | Exiles lab attacked by MAIN.C 2658 | -9/Exiles | Attacked by the Exiles 2721 | -9/Exiles | Discovered new exit (range 14) 2792 | -9/Exiles | Left Exiles lab with Army-in-a-Box 2792 | -9/Exiles | Entered Mines 2850 | -8/Mines | 1C-UTU came to Exiles' defense 2857 | -8/Mines | Core integrity fell below 50% 2860 | -8/Mines | Core integrity fell below 20% 2860 | -8/Mines | Destroyed by 1C-UTU with 1C-UTU's Sword "Choppy" Last Messages --------------- 02758_ ZK-VZU(g) destroyed. A strange signal echoes through the mines. LOCATION=UNKNOWN GOAL=ESCAPE 02804_ T-07 Excavator destroyed. 02804_ Switching to secondary target: G-50 Soldier. 02805_ Aluminum Leg destroyed. 02819_ Critical hit (Burn: +37). 02827_ G-47 Trooper destroyed. 02839_ Dropped Lgt. Ion Engine. 02840_ Acquired Imp. Terrain Scanner. 02845_ Acquired 10 matter. 02850_ 1C-UTU: "I came as fast as I could... Wait, it was you!" 02851_ Acquired Lgt. Ion Engine. 02854_ Aluminum Leg destroyed. 02854_ Hvy. Assault Rifle destroyed. 02854_ Aluminum Leg destroyed. 02855_ 1C-UTU follow-up attacks with Prototype Slashing Weapon. 02855_ Aluminum Leg destroyed. 02860_ Imp. Terrain Scanner destroyed. Map ----- +----------------------------------------------------+ | | | | | | | ??????????????????????????????????????????? | | ??????????????????????????????????????????? | | ??????????????????????????????????????????? | | ??????????????????????????????????????????? | | ??????????????????????????????????????????? | | ??????????????????????????????????????????? | | ??????????????????????????????????????????? | | ??????????????????????????????????????????? | | ??????????????????????????????????????????? | | ??????????????????????????? ??????????????? | | ??????????????????????????? ??????????????? | | ??????????????#??????????# ??????????????? | | ???????????????????????#### ??????????????? | | ??????????????????????? ## ??????### ????? | | ??????????????????????? ???????### ????? | | ???????????????????????? ??????? ????? | | ???????????????????????? ???????? ##????? | | ??????????? ???????????? ??????? ##????? | | ???????????????????????# ???### ###???? | | ???????????????????? ??## ##?##### ###?#?? | | ???????????????????????## ###### ##???? | | ???????????#???????????## ##### ##???? | | ???????????????????????##@#### ###???? | | ???????????????????????##l### ###????? | | ???????????????????????##=## ###?????? | | ?????????????????????#### ## ##??????? | | ???????????#?????????####s## ##??????? | | ?????????#????????#??##!*%!% ##??????? | | ????????????## [##### ###?????? | | ????????????## ######## ######## ###????? | | ????????????## ######## ??####### ###???? | | ????????????????????? ???????## ##???? | | ????????????????????????????????? ##???? | | ????????????????????????????????? ###???? | | ?????????????????????????????????######???? | | ?????????????????????????????????#####????? | | ?????????????????????????#????????????????? | | ??????????????????????????????????????????? | | ??????????????????????????????????????????? | | ??????????????????????????????????????????? | | ?????????????????????????????? ???????????? | | ??????????????????????????????????????????? | | ??????????????????????????????????????????? | | ??????????????????????????????????????????? | | ??????????????????????????????????????????? | | ??????????????????????????????????????????? | | ??????????????????????????????????????????? | +----------------------------------------------------+ Best States ------------- Heat Dissipation 38 Energy Generation 14 Energy Capacity 280 Matter Stores 300 Matter Capacity 300 Sight Range 16 Terrain Scan Range 16 Terrain Scan Density 10 Evasion (%) 55 Item Schematics ----------------- None Robot Schematics ------------------ None Fabricated ------------ Nothing Alien Tech Used ----------------- None Achievements -------------- None Challenges ------------ None Game ------ Seed BattleSuperchargedPrototype Manual? 0 Play Time 00:26:34 Cumulative 217.3 hours Start 2024.10.25 @ 17:14:43 End 2024.10.25 @ 17:44:32 Sessions 1 Manual Loads 0 Difficulty Rogue Special Mode None Game No. 337 Rogue 337 Adventurer 0 Explorer 0 Win Type - Total 0 Types 0/0/0/0/0/0/0/0/0 Lore% 38 Gallery% 55 Achievement% 41 Wizard Run 0 Options --------- Layout 0 ASCII 0 Keyboard 0 Movement Mouse Keybinds 0 Fullscreen 1 Font 18/SmallcapsGlow Map View 76x50 Zoom Use 0% Tactical HUD 1 Map Filters NONE Filters NONE Steam 1 RUN: 775868b2-a176-4dae-b1af-8c082b8cd96e